[Event "Live Chess"]
[Site "Chess.com"]
[Date "2023.05.20"]
[Round "-"]
[White "MaximKris"]
[Black "JohanKjeldahl"]
[Result "1-0"]
[WhiteElo "1850"]
[BlackElo "1750"]
[TimeControl "300"]
[EndTime "10:18:18 PDT"]
[Termination "MaximKris won by resignation"]

1. e4 {[%clk 0:04:59.3]} 1... c5 {[%clk 0:04:58.1]} 2. Nf3 {[%clk 0:04:58.6]}
2... e6 {[%clk 0:04:56.8]} 3. c3 {[%clk 0:04:57]} 3... Nc6 {[%clk 0:04:54.7]} 4.
d4 {[%clk 0:04:55.8]} 4... cxd4 {[%clk 0:04:53.6]} 5. Nxd4 {[%clk 0:04:55.7]}
5... Nf6 {[%clk 0:04:50.5]} 6. Nxc6 {[%clk 0:04:51.8]} 6... bxc6 {[%clk
0:04:48.5]} 7. Bg5 {[%clk 0:04:50.3]} 7... Be7 {[%clk 0:04:44.2]} 8. e5 {[%clk
0:04:42.4]} 8... Nd5 {[%clk 0:04:42.5]} 9. Bxe7 {[%clk 0:04:42.3]} 9... Qxe7
{[%clk 0:04:41.4]} 10. Bd3 {[%clk 0:04:41.8]} 10... O-O {[%clk 0:04:38.5]} 11.
Qh5 {[%clk 0:04:37.1]} 11... f5 {[%clk 0:04:36.8]} 12. exf6 {[%clk 0:04:30.1]}
12... Nxf6 {[%clk 0:04:35.7]} 13. Qh3 {[%clk 0:04:20.4]} 13... d5 {[%clk
0:04:33.7]} 14. O-O {[%clk 0:04:14.6]} 14... e5 {[%clk 0:04:32.5]} 15. Bf5
{[%clk 0:04:12.1]} 15... Bxf5 {[%clk 0:04:30.4]} 16. Qxf5 {[%clk 0:04:12]} 16...
e4 {[%clk 0:04:28.3]} 17. Qh3 {[%clk 0:04:08.2]} 17... Rab8 {[%clk 0:04:26.1]}
18. b3 {[%clk 0:04:03]} 18... Qe5 {[%clk 0:04:24.3]} 19. Qg3 {[%clk 0:03:59.7]}
19... Qxg3 {[%clk 0:04:11.4]} 20. hxg3 {[%clk 0:03:59.6]} 20... Ng4 {[%clk
0:04:09.3]} 21. Nd2 {[%clk 0:03:11.6]} 21... e3 {[%clk 0:04:06.7]} 22. fxe3
{[%clk 0:03:09.4]} 22... Nxe3 {[%clk 0:04:05.7]} 23. Rxf8+ {[%clk 0:03:08.9]}
23... Rxf8 {[%clk 0:04:03.7]} 24. Re1 {[%clk 0:03:08.8]} 24... Nf5 {[%clk
0:03:49.2]} 25. g4 {[%clk 0:03:02.1]} 25... Nh6 {[%clk 0:03:43.2]} 26. Re6
{[%clk 0:02:57.2]} 26... Nxg4 {[%clk 0:03:40.5]} 27. Rxc6 {[%clk 0:02:54.4]}
27... Rf2 {[%clk 0:03:32.2]} 28. Rc8+ {[%clk 0:02:37.7]} 28... Kf7 {[%clk
0:03:29.8]} 29. Rc7+ {[%clk 0:02:34]} 29... Kf6 {[%clk 0:03:27.7]} 30. Nf1
{[%clk 0:02:05.3]} 30... Rxa2 {[%clk 0:03:22.8]} 31. c4 {[%clk 0:01:35]} 31...
dxc4 {[%clk 0:03:19.4]} 32. Rxc4 {[%clk 0:01:31.7]} 32... Ne5 {[%clk 0:03:17.9]}
33. Rc7 {[%clk 0:01:16.9]} 33... a5 {[%clk 0:03:15.4]} 34. Ne3 {[%clk
0:01:00.7]} 34... Rb2 {[%clk 0:03:08.3]} 35. Rc3 {[%clk 0:00:51.7]} 35... h5
{[%clk 0:02:59.9]} 36. Nc4 {[%clk 0:00:35.7]} 36... Ng4 {[%clk 0:02:58]} 37.
Nxb2 {[%clk 0:00:29]} 1-0

[Event "Live Chess"]
[Site "Chess.com"]
[Date "2023.05.20"]
[Round "-"]
[White "guptarayan"]
[Black "chessleanstrategist"]
[Result "1-0"]
[WhiteElo "632"]
[BlackElo "410"]
[TimeControl "300"]
[EndTime "10:18:22 PDT"]
[Termination "guptarayan won on time"]

1. e4 {[%clk 0:04:55.3]} 1... d6 {[%clk 0:04:57.4]} 2. d4 {[%clk 0:04:53.7]}
2... Nf6 {[%clk 0:04:56.9]} 3. Nc3 {[%clk 0:04:47.4]} 3... g6 {[%clk 0:04:51.2]}
4. f4 {[%clk 0:04:45.7]} 4... Bg7 {[%clk 0:04:41.3]} 5. Nf3 {[%clk 0:04:40.8]}
5... c5 {[%clk 0:04:39]} 6. Bc4 {[%clk 0:04:32.2]} 6... O-O {[%clk 0:04:25.5]}
7. Bd3 {[%clk 0:04:24.6]} 7... cxd4 {[%clk 0:04:20.3]} 8. Nxd4 {[%clk
0:04:21.7]} 8... Re8 {[%clk 0:04:13]} 9. f5 {[%clk 0:04:17.5]} 9... e5 {[%clk
0:03:57.1]} 10. Nf3 {[%clk 0:04:12.8]} 10... a5 {[%clk 0:03:35.7]} 11. Ng5
{[%clk 0:04:08]} 11... h6 {[%clk 0:03:21.3]} 12. Nf3 {[%clk 0:04:02]} 12... Kh7
{[%clk 0:03:17.2]} 13. fxg6+ {[%clk 0:03:59.1]} 13... fxg6 {[%clk 0:03:15.5]}
14. h4 {[%clk 0:03:56.7]} 14... Bg4 {[%clk 0:03:05]} 15. Be2 {[%clk 0:03:47.1]}
15... Nbd7 {[%clk 0:02:51.6]} 16. Nd2 {[%clk 0:03:34.1]} 16... Qe7 {[%clk
0:02:45.2]} 17. Bxg4 {[%clk 0:03:31.5]} 17... Nxg4 {[%clk 0:02:33.6]} 18. Qxg4
{[%clk 0:03:29]} 18... Nf6 {[%clk 0:02:33.3]} 19. Qe2 {[%clk 0:03:16.5]} 19...
b6 {[%clk 0:02:28.5]} 20. Nf3 {[%clk 0:02:46.7]} 20... h5 {[%clk 0:02:19.4]} 21.
Ng5+ {[%clk 0:02:43.6]} 21... Kg8 {[%clk 0:02:15.8]} 22. Nf3 {[%clk 0:02:33.6]}
22... Nh7 {[%clk 0:01:54.8]} 23. Ng5 {[%clk 0:02:26.4]} 23... Nxg5 {[%clk
0:01:52.6]} 24. hxg5 {[%clk 0:02:24.8]} 24... Rf8 {[%clk 0:01:41]} 25. Rf1
{[%clk 0:02:20.6]} 25... Rxf1+ {[%clk 0:01:38.6]} 26. Qxf1 {[%clk 0:02:18.7]}
26... Qf8 {[%clk 0:01:33.3]} 27. Qxf8+ {[%clk 0:02:15.7]} 27... Rxf8 {[%clk
0:01:32.4]} 28. Nd5 {[%clk 0:02:12.4]} 28... Re8 {[%clk 0:01:14.1]} 29. Nxb6
{[%clk 0:02:09.2]} 29... Rf8 {[%clk 0:00:59.2]} 30. Nd7 {[%clk 0:02:06.1]} 30...
Rd8 {[%clk 0:00:48.2]} 31. Nf6+ {[%clk 0:02:03.3]} 31... Bxf6 {[%clk 0:00:45.7]}
32. gxf6 {[%clk 0:02:01.5]} 32... Kf7 {[%clk 0:00:44.7]} 33. Bg5 {[%clk
0:02:00.1]} 33... d5 {[%clk 0:00:41.8]} 34. O-O-O {[%clk 0:01:58.3]} 34... Rd6
{[%clk 0:00:36.5]} 35. exd5 {[%clk 0:01:55.8]} 35... e4 {[%clk 0:00:13.8]} 36.
c4 {[%clk 0:01:49.2]} 36... e3 {[%clk 0:00:09.4]} 37. c5 {[%clk 0:01:46.8]}
37... Rd8 {[%clk 0:00:00.7]} 38. c6 {[%clk 0:01:40.8]} 1-0

[Event "Live Chess"]
[Site "Chess.com"]
[Date "2023.05.20"]
[Round "-"]
[White "LiamClery2020"]
[Black "ReeceHockton"]
[Result "1-0"]
[WhiteElo "2077"]
[BlackElo "331"]
[TimeControl "300"]
[EndTime "10:18:22 PDT"]
[Termination "LiamClery2020 won by checkmate"]

1. e4 {[%clk 0:04:58.8]} 1... e5 {[%clk 0:04:59]} 2. Nc3 {[%clk 0:04:57.8]} 2...
Nc6 {[%clk 0:04:58.2]} 3. Bc4 {[%clk 0:04:56.9]} 3... d6 {[%clk 0:04:55.8]} 4.
Nf3 {[%clk 0:04:55.1]} 4... Be6 {[%clk 0:04:53.9]} 5. Bxe6 {[%clk 0:04:54.1]}
5... fxe6 {[%clk 0:04:52.7]} 6. d4 {[%clk 0:04:54]} 6... exd4 {[%clk 0:04:51.1]}
7. Nxd4 {[%clk 0:04:53.9]} 7... Nxd4 {[%clk 0:04:50.3]} 8. Qxd4 {[%clk
0:04:53.8]} 8... c5 {[%clk 0:04:49.4]} 9. Qe3 {[%clk 0:04:51.9]} 9... d5 {[%clk
0:04:47.2]} 10. exd5 {[%clk 0:04:51]} 10... Nf6 {[%clk 0:04:40.6]} 11. Qxe6+
{[%clk 0:04:49.7]} 11... Be7 {[%clk 0:04:38.3]} 12. O-O {[%clk 0:04:49.2]} 12...
Qxd5 {[%clk 0:04:35.6]} 13. Nxd5 {[%clk 0:04:49.1]} 13... Rd8 {[%clk 0:04:33.5]}
14. Qxe7# {[%clk 0:04:48.1]} 1-0

[Event "Live Chess"]
[Site "Chess.com"]
[Date "2023.05.20"]
[Round "-"]
[White "jennybobby44"]
[Black "NatashaRegan"]
[Result "0-1"]
[WhiteElo "1841"]
[BlackElo "1886"]
[TimeControl "300"]
[EndTime "10:18:26 PDT"]
[Termination "NatashaRegan won on time"]

1. e4 {[%clk 0:04:58.8]} 1... Nf6 {[%clk 0:04:55.9]} 2. Nc3 {[%clk 0:04:54.7]}
2... d5 {[%clk 0:04:48.7]} 3. exd5 {[%clk 0:04:53.2]} 3... Nxd5 {[%clk
0:04:46.7]} 4. d4 {[%clk 0:04:52.4]} 4... c6 {[%clk 0:04:36.5]} 5. Nf3 {[%clk
0:04:51.2]} 5... Bg4 {[%clk 0:04:33.9]} 6. Be2 {[%clk 0:04:50.2]} 6... Nd7
{[%clk 0:04:31]} 7. h3 {[%clk 0:04:49.3]} 7... Bh5 {[%clk 0:04:28.5]} 8. O-O
{[%clk 0:04:48.5]} 8... e6 {[%clk 0:04:25.2]} 9. Ne5 {[%clk 0:04:46]} 9... Nxc3
{[%clk 0:04:17.6]} 10. bxc3 {[%clk 0:04:39.9]} 10... Bxe2 {[%clk 0:04:15.2]} 11.
Qxe2 {[%clk 0:04:38.9]} 11... Bd6 {[%clk 0:04:12.2]} 12. f4 {[%clk 0:04:24.5]}
12... O-O {[%clk 0:04:04.8]} 13. Be3 {[%clk 0:04:23.6]} 13... Nf6 {[%clk
0:04:02.1]} 14. Qf3 {[%clk 0:04:11.3]} 14... Rc8 {[%clk 0:03:56.5]} 15. g4
{[%clk 0:03:39.4]} 15... Nd5 {[%clk 0:03:53.8]} 16. Bd2 {[%clk 0:03:33.9]} 16...
c5 {[%clk 0:03:48.5]} 17. c4 {[%clk 0:03:22.8]} 17... Bxe5 {[%clk 0:03:40.7]}
18. fxe5 {[%clk 0:03:03.4]} 18... Nb6 {[%clk 0:03:35]} 19. Qe4 {[%clk
0:01:58.8]} 19... Nxc4 {[%clk 0:03:24.3]} 20. Bc3 {[%clk 0:01:43.7]} 20... cxd4
{[%clk 0:03:16]} 21. Bxd4 {[%clk 0:01:42.6]} 21... Nd2 {[%clk 0:03:10.4]} 22.
Qd3 {[%clk 0:01:32.1]} 22... Nxf1 {[%clk 0:03:08.2]} 23. Rxf1 {[%clk 0:01:32]}
23... b6 {[%clk 0:02:58.2]} 24. c3 {[%clk 0:01:30.3]} 24... Qd5 {[%clk
0:02:56.8]} 25. Rf2 {[%clk 0:01:23.5]} 25... Rc4 {[%clk 0:02:53.6]} 26. Qf3
{[%clk 0:01:15.3]} 26... Qxf3 {[%clk 0:02:48.8]} 27. Rxf3 {[%clk 0:01:14.7]}
27... Ra4 {[%clk 0:02:45.2]} 28. Rf2 {[%clk 0:01:13.1]} 28... Rc8 {[%clk
0:02:43.1]} 29. Kg2 {[%clk 0:01:11.6]} 29... Kf8 {[%clk 0:02:39.2]} 30. Kf3
{[%clk 0:01:07.9]} 30... Ke7 {[%clk 0:02:32.8]} 31. Ke3 {[%clk 0:01:05.7]} 31...
Rcc4 {[%clk 0:02:24.7]} 32. h4 {[%clk 0:00:54.5]} 32... g6 {[%clk 0:02:15.7]}
33. Kd3 {[%clk 0:00:53.4]} 33... b5 {[%clk 0:02:10.4]} 34. Rb2 {[%clk
0:00:48.7]} 34... a6 {[%clk 0:02:08.2]} 35. h5 {[%clk 0:00:43.5]} 35... Kd7
{[%clk 0:02:03.4]} 36. hxg6 {[%clk 0:00:42.5]} 36... hxg6 {[%clk 0:02:01.8]} 37.
Rf2 {[%clk 0:00:41.7]} 37... Ke8 {[%clk 0:01:57.4]} 38. Rh2 {[%clk 0:00:40.2]}
38... Ke7 {[%clk 0:01:53.8]} 39. Rf2 {[%clk 0:00:39.2]} 39... a5 {[%clk
0:01:50.6]} 40. Rb2 {[%clk 0:00:37.6]} 40... Rxd4+ {[%clk 0:01:30.2]} 41. cxd4
{[%clk 0:00:36.2]} 41... Ra3+ {[%clk 0:01:25.1]} 42. Ke4 {[%clk 0:00:34.6]}
42... b4 {[%clk 0:01:22.8]} 43. d5 {[%clk 0:00:33.8]} 43... exd5+ {[%clk
0:01:20.4]} 44. Kxd5 {[%clk 0:00:33.7]} 44... Rd3+ {[%clk 0:01:19]} 45. Ke4
{[%clk 0:00:32.4]} 45... Rc3 {[%clk 0:01:17.1]} 46. Kd5 {[%clk 0:00:27.5]} 46...
Rc1 {[%clk 0:01:11.1]} 47. Ke4 {[%clk 0:00:21.9]} 47... Ke6 {[%clk 0:01:08.5]}
48. Kf4 {[%clk 0:00:18.5]} 48... Rc4+ {[%clk 0:01:05.2]} 49. Kg5 {[%clk
0:00:16.4]} 49... Kxe5 {[%clk 0:01:02.6]} 50. Re2+ {[%clk 0:00:15.8]} 50... Re4
{[%clk 0:01:01.1]} 51. Rf2 {[%clk 0:00:15.2]} 51... Ke6 {[%clk 0:00:59.1]} 52.
Rf6+ {[%clk 0:00:14]} 52... Ke7 {[%clk 0:00:57]} 53. Ra6 {[%clk 0:00:13.4]}
53... Re5+ {[%clk 0:00:55.5]} 54. Kf4 {[%clk 0:00:12.5]} 54... Rb5 {[%clk
0:00:50.5]} 55. g5 {[%clk 0:00:11.8]} 55... Rf5+ {[%clk 0:00:45.9]} 56. Kg4
{[%clk 0:00:11.4]} 56... Kf8 {[%clk 0:00:38]} 57. Ra8+ {[%clk 0:00:10.4]} 57...
Kg7 {[%clk 0:00:37]} 58. Ra6 {[%clk 0:00:09.9]} 58... Rc5 {[%clk 0:00:34.9]} 59.
Ra7 {[%clk 0:00:09]} 59... Rc4+ {[%clk 0:00:32.8]} 60. Kg3 {[%clk 0:00:08]}
60... Rc3+ {[%clk 0:00:31.7]} 61. Kg4 {[%clk 0:00:07.5]} 61... Ra3 {[%clk
0:00:30.7]} 0-1

[Event "Live Chess"]
[Site "Chess.com"]
[Date "2023.05.20"]
[Round "-"]
[White "martinsmartin63"]
[Black "JackCheetham1"]
[Result "0-1"]
[WhiteElo "760"]
[BlackElo "1692"]
[TimeControl "300"]
[EndTime "10:18:29 PDT"]
[Termination "JackCheetham1 won on time"]

1. e4 {[%clk 0:04:55.7]} 1... d6 {[%clk 0:04:58.9]} 2. Nf3 {[%clk 0:04:50.8]}
2... g6 {[%clk 0:04:52.9]} 3. d4 {[%clk 0:04:47.5]} 3... Bg7 {[%clk 0:04:50.8]}
4. e5 {[%clk 0:04:44.9]} 4... Nd7 {[%clk 0:04:34]} 5. exd6 {[%clk 0:04:40.3]}
5... cxd6 {[%clk 0:04:32.9]} 6. Bb5 {[%clk 0:04:34.1]} 6... Nf6 {[%clk
0:04:29.5]} 7. Nc3 {[%clk 0:04:30.4]} 7... O-O {[%clk 0:04:27.8]} 8. Bd3 {[%clk
0:04:21.8]} 8... a6 {[%clk 0:04:21.8]} 9. O-O {[%clk 0:04:10.8]} 9... b5 {[%clk
0:04:18.7]} 10. Ne4 {[%clk 0:04:04.6]} 10... Bb7 {[%clk 0:04:15.6]} 11. Nxf6+
{[%clk 0:04:01.9]} 11... Nxf6 {[%clk 0:04:15.5]} 12. Be2 {[%clk 0:03:46.3]}
12... h6 {[%clk 0:04:12.7]} 13. Bd2 {[%clk 0:03:40.1]} 13... Qc7 {[%clk
0:04:09.5]} 14. Qc1 {[%clk 0:03:37.1]} 14... Kh7 {[%clk 0:04:08.2]} 15. Bxh6
{[%clk 0:03:33.7]} 15... Bxh6 {[%clk 0:04:07]} 16. Ng5+ {[%clk 0:03:25.9]} 16...
Bxg5 {[%clk 0:04:01]} 17. Qxg5 {[%clk 0:03:21.1]} 17... Kg7 {[%clk 0:03:51.2]}
18. Bf3 {[%clk 0:03:12.6]} 18... Bxf3 {[%clk 0:03:45.2]} 19. gxf3 {[%clk
0:03:09.3]} 19... Rh8 {[%clk 0:03:38.9]} 20. Qg3 {[%clk 0:02:59.3]} 20... Qxc2
{[%clk 0:03:26.9]} 21. Rfc1 {[%clk 0:02:51.7]} 21... Qxb2 {[%clk 0:03:21]} 22.
Rab1 {[%clk 0:02:43.6]} 22... Qxd4 {[%clk 0:03:17.8]} 23. Rd1 {[%clk 0:02:40]}
23... Qe5 {[%clk 0:03:09.1]} 24. f4 {[%clk 0:02:32.1]} 24... Qf5 {[%clk
0:03:05.9]} 25. Re1 {[%clk 0:02:18.6]} 25... Ne4 {[%clk 0:02:56.8]} 26. Qe3
{[%clk 0:02:02.2]} 26... d5 {[%clk 0:02:34.2]} 27. Qd3 {[%clk 0:01:44.4]} 27...
Rh3 {[%clk 0:02:26]} 28. Qd4+ {[%clk 0:01:34.7]} 28... f6 {[%clk 0:02:04.9]} 29.
Rxe4 {[%clk 0:01:27.9]} 29... Qxe4 {[%clk 0:01:59.3]} 30. Qxe4 {[%clk
0:01:20.3]} 30... dxe4 {[%clk 0:01:58.3]} 31. Kg2 {[%clk 0:01:11.3]} 31... Ra3
{[%clk 0:01:57]} 32. Rd1 {[%clk 0:01:02.3]} 32... Rxa2 {[%clk 0:01:53.8]} 33.
Rd7 {[%clk 0:00:57.3]} 33... Kf7 {[%clk 0:01:52.8]} 34. Rd4 {[%clk 0:00:48.8]}
34... f5 {[%clk 0:01:50.9]} 35. Kg3 {[%clk 0:00:29.1]} 35... Rb8 {[%clk
0:01:41.9]} 36. f3 {[%clk 0:00:26.1]} 36... e3 {[%clk 0:01:38.9]} 37. Rd1 {[%clk
0:00:09]} 37... e2 {[%clk 0:01:37.8]} 38. Re1 {[%clk 0:00:05.9]} 38... Rd8
{[%clk 0:01:36.1]} 39. h3 {[%clk 0:00:00.2]} 39... Rd1 {[%clk 0:01:34.6]} 0-1

[Event "Live Chess"]
[Site "Chess.com"]
[Date "2023.05.20"]
[Round "-"]
[White "CheckString"]
[Black "Delacorta"]
[Result "0-1"]
[WhiteElo "1276"]
[BlackElo "1395"]
[TimeControl "300"]
[EndTime "10:18:35 PDT"]
[Termination "Delacorta won by resignation"]

1. e4 {[%clk 0:04:57]} 1... e6 {[%clk 0:04:58.9]} 2. d4 {[%clk 0:04:55.5]} 2...
d5 {[%clk 0:04:58]} 3. e5 {[%clk 0:04:54.9]} 3... c5 {[%clk 0:04:56.7]} 4. c3
{[%clk 0:04:53]} 4... Nc6 {[%clk 0:04:55.8]} 5. Nf3 {[%clk 0:04:52.2]} 5... Qb6
{[%clk 0:04:54]} 6. Bd3 {[%clk 0:04:39]} 6... Bd7 {[%clk 0:04:50.7]} 7. Be3
{[%clk 0:04:32.1]} 7... Qxb2 {[%clk 0:04:48.8]} 8. Nbd2 {[%clk 0:04:12.5]} 8...
Qxc3 {[%clk 0:04:44.6]} 9. Bb5 {[%clk 0:03:56.4]} 9... Nxe5 {[%clk 0:04:31.6]}
10. Bxd7+ {[%clk 0:03:51.5]} 10... Nxd7 {[%clk 0:04:30.7]} 11. Ne5 {[%clk
0:03:49.6]} 0-1

[Event "Live Chess"]
[Site "Chess.com"]
[Date "2023.05.20"]
[Round "-"]
[White "alanmike75"]
[Black "AttackingSnowLeopard"]
[Result "0-1"]
[WhiteElo "1482"]
[BlackElo "2063"]
[TimeControl "300"]
[EndTime "10:18:48 PDT"]
[Termination "AttackingSnowLeopard won by resignation"]

1. e4 {[%clk 0:04:59.1]} 1... e5 {[%clk 0:04:58.1]} 2. Nf3 {[%clk 0:04:57.8]}
2... Nc6 {[%clk 0:04:57.5]} 3. d4 {[%clk 0:04:56.1]} 3... exd4 {[%clk
0:04:56.4]} 4. Bc4 {[%clk 0:04:55]} 4... Nf6 {[%clk 0:04:54.3]} 5. O-O {[%clk
0:04:54]} 5... Nxe4 {[%clk 0:04:52.7]} 6. Re1 {[%clk 0:04:52.9]} 6... d5 {[%clk
0:04:52.1]} 7. Bxd5 {[%clk 0:04:51.7]} 7... Qxd5 {[%clk 0:04:52]} 8. Nc3 {[%clk
0:04:50.5]} 8... Qh5 {[%clk 0:04:51.7]} 9. Nxe4 {[%clk 0:04:49.1]} 9... Be7
{[%clk 0:04:51.2]} 10. Ng3 {[%clk 0:04:47.6]} 10... Qg6 {[%clk 0:04:48.3]} 11.
Nxd4 {[%clk 0:04:42.4]} 11... Nxd4 {[%clk 0:04:44.2]} 12. Qxd4 {[%clk
0:04:41.1]} 12... Be6 {[%clk 0:04:43.9]} 13. Qa4+ {[%clk 0:04:29.2]} 13... c6
{[%clk 0:04:40.3]} 14. Qe4 {[%clk 0:04:23.6]} 14... O-O-O {[%clk 0:04:33.3]} 15.
Qxg6 {[%clk 0:04:13]} 15... hxg6 {[%clk 0:04:33.2]} 16. Be3 {[%clk 0:04:11.7]}
16... Bf6 {[%clk 0:04:31.9]} 17. c3 {[%clk 0:04:09.7]} 17... b6 {[%clk
0:04:29.8]} 18. Ne4 {[%clk 0:04:07]} 18... Be5 {[%clk 0:04:25.5]} 19. g3 {[%clk
0:04:05.9]} 19... Bd5 {[%clk 0:04:23.8]} 20. f3 {[%clk 0:03:51.2]} 20... Bxe4
{[%clk 0:04:18.5]} 21. fxe4 {[%clk 0:03:49.8]} 21... Rd3 {[%clk 0:04:16.7]} 22.
Rad1 {[%clk 0:03:42.6]} 22... Rhd8 {[%clk 0:04:13.5]} 23. Rxd3 {[%clk
0:03:41.3]} 23... Rxd3 {[%clk 0:04:13.4]} 24. Kf2 {[%clk 0:03:39.7]} 24... f6
{[%clk 0:04:10.7]} 25. Ke2 {[%clk 0:03:38.6]} 25... Rd8 {[%clk 0:04:10.4]} 26.
Rd1 {[%clk 0:03:30.9]} 26... Rh8 {[%clk 0:04:07.1]} 27. Bg1 {[%clk 0:03:29.1]}
27... g5 {[%clk 0:04:05.2]} 28. Kf3 {[%clk 0:03:25.3]} 28... Rd8 {[%clk
0:03:58.2]} 29. Rxd8+ {[%clk 0:03:22.8]} 29... Kxd8 {[%clk 0:03:58.1]} 30. Bd4
{[%clk 0:03:14.2]} 30... Bd6 {[%clk 0:03:51.3]} 31. Kg4 {[%clk 0:03:03]} 31...
c5 {[%clk 0:03:48.5]} 32. Be3 {[%clk 0:03:01.7]} 32... Ke7 {[%clk 0:03:48.1]}
33. h4 {[%clk 0:02:56.9]} 33... gxh4 {[%clk 0:03:46.8]} 34. gxh4 {[%clk
0:02:55.9]} 34... g6 {[%clk 0:03:45.5]} 35. h5 {[%clk 0:02:51.4]} 35... gxh5+
{[%clk 0:03:44.3]} 36. Kxh5 {[%clk 0:02:50.5]} 36... Ke6 {[%clk 0:03:43.9]} 37.
Kg4 {[%clk 0:02:49.6]} 37... c4 {[%clk 0:03:39.3]} 38. Bd4 {[%clk 0:02:41]}
38... Be5 {[%clk 0:03:32.6]} 39. Kf3 {[%clk 0:02:39.3]} 39... Bxd4 {[%clk
0:03:27]} 40. cxd4 {[%clk 0:02:37.9]} 40... f5 {[%clk 0:03:26.6]} 41. e5 {[%clk
0:02:31.8]} 41... b5 {[%clk 0:03:25.1]} 42. Ke3 {[%clk 0:02:30.2]} 42... b4
{[%clk 0:03:23.5]} 43. Kd2 {[%clk 0:02:22.8]} 43... f4 {[%clk 0:03:21.4]} 44.
Ke2 {[%clk 0:02:20.9]} 44... c3 {[%clk 0:03:18.2]} 45. bxc3 {[%clk 0:02:19.6]}
45... bxc3 {[%clk 0:03:18.1]} 46. Kd3 {[%clk 0:02:18.7]} 46... f3 {[%clk
0:03:17.2]} 0-1

[Event "Live Chess"]
[Site "Chess.com"]
[Date "2023.05.20"]
[Round "-"]
[White "Bob2pen"]
[Black "kenn48"]
[Result "1-0"]
[WhiteElo "1786"]
[BlackElo "1323"]
[TimeControl "300"]
[EndTime "10:18:49 PDT"]
[Termination "Bob2pen won on time"]

1. c4 {[%clk 0:04:57.5]} 1... Nf6 {[%clk 0:04:57.4]} 2. g3 {[%clk 0:04:56.4]}
2... c6 {[%clk 0:04:54.1]} 3. Bg2 {[%clk 0:04:55.3]} 3... d6 {[%clk 0:04:50.8]}
4. Nc3 {[%clk 0:04:52.8]} 4... Nbd7 {[%clk 0:04:44.7]} 5. Nf3 {[%clk 0:04:51]}
5... e6 {[%clk 0:04:33.5]} 6. d4 {[%clk 0:04:48.1]} 6... Be7 {[%clk 0:04:29.8]}
7. O-O {[%clk 0:04:46.7]} 7... O-O {[%clk 0:04:26.9]} 8. Rb1 {[%clk 0:04:43.3]}
8... Nb6 {[%clk 0:04:10.5]} 9. b3 {[%clk 0:04:39]} 9... Nbd7 {[%clk 0:03:48]}
10. Bb2 {[%clk 0:04:37]} 10... Re8 {[%clk 0:03:32.1]} 11. Re1 {[%clk 0:04:33.8]}
11... Nf8 {[%clk 0:03:30]} 12. e4 {[%clk 0:04:29.7]} 12... Ng6 {[%clk
0:03:23.4]} 13. Qc2 {[%clk 0:04:25.2]} 13... h5 {[%clk 0:02:59.2]} 14. Rbd1
{[%clk 0:04:23.1]} 14... Nh7 {[%clk 0:02:45.7]} 15. e5 {[%clk 0:04:15.7]} 15...
d5 {[%clk 0:02:40.5]} 16. cxd5 {[%clk 0:04:10.1]} 16... cxd5 {[%clk 0:02:34.6]}
17. Nb5 {[%clk 0:04:08.4]} 17... a6 {[%clk 0:02:26.9]} 18. Nc7 {[%clk
0:04:06.7]} 18... Bd7 {[%clk 0:02:14.2]} 19. Nxa8 {[%clk 0:04:04.7]} 19... Qxa8
{[%clk 0:02:12]} 20. Rc1 {[%clk 0:04:00.5]} 20... h4 {[%clk 0:02:05.7]} 21. Qc7
{[%clk 0:03:57.3]} 21... Bc6 {[%clk 0:01:57.2]} 22. a4 {[%clk 0:03:47.8]} 22...
hxg3 {[%clk 0:01:46.6]} 23. hxg3 {[%clk 0:03:40.3]} 23... Rc8 {[%clk 0:01:19.6]}
24. Qa5 {[%clk 0:03:38.5]} 24... Bd8 {[%clk 0:01:16]} 25. Qd2 {[%clk 0:03:35.3]}
25... f5 {[%clk 0:00:46]} 26. Bc3 {[%clk 0:03:27.6]} 26... Bd7 {[%clk
0:00:29.2]} 27. Ba5 {[%clk 0:03:24.6]} 27... Bxa5 {[%clk 0:00:15.9]} 28. Qxa5
{[%clk 0:03:22.2]} 28... Rxc1 {[%clk 0:00:13.6]} 29. Rxc1 {[%clk 0:03:20.7]}
29... Bc6 {[%clk 0:00:11.5]} 30. Qd2 {[%clk 0:03:11.7]} 30... Qf8 {[%clk
0:00:09.4]} 31. Ng5 {[%clk 0:03:09.6]} 31... Nxg5 {[%clk 0:00:06.5]} 32. Qxg5
{[%clk 0:03:08.4]} 32... Qf7 {[%clk 0:00:03]} 33. Bf3 {[%clk 0:03:01.9]} 1-0

[Event "Live Chess"]
[Site "Chess.com"]
[Date "2023.05.20"]
[Round "-"]
[White "lucaskk818"]
[Black "KGreenGator"]
[Result "1-0"]
[WhiteElo "1869"]
[BlackElo "1762"]
[TimeControl "300"]
[EndTime "10:18:50 PDT"]
[Termination "lucaskk818 won by checkmate"]

1. d4 {[%clk 0:04:58.6]} 1... Nf6 {[%clk 0:04:58.3]} 2. c4 {[%clk 0:04:57.9]}
2... e6 {[%clk 0:04:57.2]} 3. g3 {[%clk 0:04:55.9]} 3... d5 {[%clk 0:04:56.3]}
4. Bg2 {[%clk 0:04:55.3]} 4... c6 {[%clk 0:04:54.9]} 5. Nf3 {[%clk 0:04:54.5]}
5... dxc4 {[%clk 0:04:51.4]} 6. Qc2 {[%clk 0:04:52.8]} 6... b5 {[%clk
0:04:49.9]} 7. Ne5 {[%clk 0:04:48.7]} 7... Bb7 {[%clk 0:04:48.8]} 8. e3 {[%clk
0:04:40.7]} 8... Nd5 {[%clk 0:04:46.4]} 9. a4 {[%clk 0:04:39.6]} 9... a6 {[%clk
0:04:44.8]} 10. axb5 {[%clk 0:04:36.9]} 10... cxb5 {[%clk 0:04:40.6]} 11. b3
{[%clk 0:04:27.3]} 11... cxb3 {[%clk 0:04:37.4]} 12. Qxb3 {[%clk 0:04:27.2]}
12... Bb4+ {[%clk 0:04:34.7]} 13. Bd2 {[%clk 0:04:25.4]} 13... Bxd2+ {[%clk
0:04:33.6]} 14. Nxd2 {[%clk 0:04:25.3]} 14... O-O {[%clk 0:04:32.2]} 15. O-O
{[%clk 0:04:23.6]} 15... Nd7 {[%clk 0:04:31.4]} 16. Nxd7 {[%clk 0:04:17.2]}
16... Qxd7 {[%clk 0:04:30.2]} 17. Rfc1 {[%clk 0:04:16.9]} 17... Rfc8 {[%clk
0:04:27.9]} 18. Ne4 {[%clk 0:04:13.7]} 18... Rxc1+ {[%clk 0:04:23.5]} 19. Rxc1
{[%clk 0:04:13.6]} 19... Rc8 {[%clk 0:04:21.9]} 20. Nc5 {[%clk 0:04:12.7]} 20...
Qc6 {[%clk 0:04:14]} 21. Ra1 {[%clk 0:03:56.2]} 21... Qb6 {[%clk 0:04:06.6]} 22.
Qa3 {[%clk 0:03:41.2]} 22... h6 {[%clk 0:04:01.4]} 23. Nxb7 {[%clk 0:03:13.6]}
23... Qxb7 {[%clk 0:03:59.7]} 24. Qxa6 {[%clk 0:03:13.1]} 24... Qxa6 {[%clk
0:03:58.7]} 25. Rxa6 {[%clk 0:03:12.6]} 25... Rc1+ {[%clk 0:03:56.3]} 26. Bf1
{[%clk 0:03:10.5]} 26... Nf6 {[%clk 0:03:46.6]} 27. Kg2 {[%clk 0:03:05.5]} 27...
b4 {[%clk 0:03:41.9]} 28. Rb6 {[%clk 0:03:03.4]} 28... Rb1 {[%clk 0:03:39.9]}
29. Bd3 {[%clk 0:03:02.4]} 29... Rb2 {[%clk 0:03:37.7]} 30. Rb8+ {[%clk
0:03:01.3]} 30... Ne8 {[%clk 0:03:35.1]} 31. Rxe8# {[%clk 0:03:01.2]} 1-0